[Event "FRA-ch Teams Top 16-A 2022"]
[Site "Chartres"]
[Date "2022.06.12"]
[Round "4.31"]
[White "Stephan, Victor"]
[Black "Da Silva, Quentin"]
[Result "1-0"]
[ECO "E99"]
[WhiteElo "2399"]
[BlackElo "2171"]
[Annotator "TA"]
[PlyCount "81"]
[EventDate "2022.06.09"]
[EventType "team-tourn"]
[EventCountry "FRA"]
[SourceTitle "playchess.com"]
[Source "ChessBase"]
[SourceQuality "1"]
[TimeControl "40/5400+30:1800+30"]

{[%evp 33,81,58,57,37,151,154,152,154,179,193,171,100,126,130,131,134,150,73,116,-668,-669,-639,-630,-715,-805,-1383,-1179,-773,-714,-770,-772,-716,-695,-635,-587,-589,156,155,703,677,704,671,782,766,746,739,1376,1371,1232,1183]} 1. d4 {[%emt 0:00:04] Kotronias,V/Primel,D} Nf6 {[%emt 0:00:21]} 2. c4 {[%emt 0:00:29]} g6 {[%emt 0:00:22]} 3. Nc3 {[%emt 0:00:54]} Bg7 {[%emt 0:00:18]} 4. e4 {[%emt 0:00:14]} d6 {[%emt 0:00:13]} 5. Nf3 {[%emt 0:00:27]} O-O {[%emt 0:00:56]} 6. Be2 {[%emt 0:00:43]} e5 {[%emt 0:01:01]} 7. O-O {[%emt 0:00:29]} Nc6 {[%emt 0:00:46]} 8. d5 {[%emt 0:00:18]} Ne7 {[%emt 0:00:12]} 9. Ne1 {[%emt 0:00:23]} Nd7 {[%emt 0:03:48]} 10. Nd3 {[%emt 0:00:37]} f5 {[%emt 0:01:30]} 11. Bd2 {[%emt 0:00:16]} Nf6 {[%emt 0:01:33]} 12. f3 {[%emt 0:00:14]} f4 {[%emt 0:00:45]} 13. c5 {[%emt 0:00:19]} g5 {[%emt 0:00:55]} 14. Rc1 {[%emt 0:00:23]} Ng6 {[%emt 0:02:49]} 15. Nb5 {[%emt 0:00:24]} Rf7 {[%emt 0:08:15]} 16. Ba5 {[%emt 0:00:25]} b6 {[%emt 0:11:41]} 17. cxd6 {[%emt 0:00:29]} cxd6 {[%emt 0:02:27]} 18. Be1 {[%emt 0:00:32] E99: King's Indian: Classical Main Line: 9 Ne1 Nd7 10 f3 f5.} Ne8 {[%emt 0:09:07]} ({Black should try} 18... g4 $1 $14) 19. Nb4 $16 {[%emt 0:00:51]} h5 {[%emt 0:10:48]} 20. Nc6 {[%emt 0:03:45] White is clearly better.} Qf6 {[%emt 0:05:04]} 21. Nbxa7 {[%emt 0:09:56]} Bd7 {[%emt 0:02:51] [#]} 22. Qb3 $146 {[%emt 0:04:28]} ({Better is} 22. Nb5 $18) ({Predecessor:} 22. Bf2 g4 23. fxg4 Qg5 24. gxh5 f3 25. Bxf3 Nf4 26. Kh1 Nf6 27. Nb5 Bf8 28. Nc7 Nh3 29. gxh3 Bxh3 30. Ne6 {1-0 (30) Navrotescu,C (2366)-Caderon,M (1993) Sautron 2015 EXT 2019 [Kotronias,V/Primel,D]}) 22... g4 {[%emt 0:08:20][%cal Og4g3] White must now prevent ...g3!} 23. Qxb6 {[%emt 0:03:55] 0x0.000860e89182dp-1022s more active pieces.} Bf8 {[%emt 0:06:47]} 24. Rc2 {[%emt 0:19:07]} Rg7 {[%emt 0:06:34]} 25. b3 {[%emt 0:05:50]} (25. Kh1 $142) 25... Nh4 {[%emt 0:03:26][%cal Oh4g2] ...Nxg2! is the strong threat.} 26. Nb8 $2 {[%emt 0:06:43][%mdl 8192] [#]} (26. Bd1 $16) 26... Rxb8 $1 $19 {[%emt 0:00:59][%mdl 512]} 27. Qxb8 {[%emt 0:00:23] [#] Threatens to win with Bb5.} Nxg2 $1 {[%emt 0:01:11][%mdl 512]} 28. Bb5 {[%emt 0:05:15]} (28. fxg4 Nxe1) 28... Nxe1 {[%emt 0:03:00][%mdl 64] Deflection} 29. Rxe1 {[%emt 0:07:13]} gxf3+ {[%emt 0:00:11]} 30. Kh1 {[%emt 0:00:44]} Rg2 {[%emt 0:07:00]} 31. Rxg2+ {[%emt 0:07:12]} fxg2+ {[%emt 0:00:04]} 32. Kg1 {[%emt 0:00:03] [#]} f3 $1 {[%emt 0:00:58]} 33. Qb6 {[%emt 0:00:04]} Bxb5 {[%emt 0:01:36]} (33... Qh4 34. Qf2 Qxf2+ 35. Kxf2 $16) 34. Nxb5 {[%emt 0:00:03] [#]} Be7 $2 {[%emt 0:00:52]} (34... Bh6 $1 $19 35. Qf2 Qf4 36. Qg3+ Qxg3 37. hxg3 Bd2) 35. Qf2 $16 {[%emt 0:02:15]} Qf4 {[%emt 0:00:40] [#]} (35... Bd8 $16 36. Rc1 h4) 36. Re3 $1 $18 {[%emt 0:01:33][%cal Be1e3,Be3f3,Bf3g3][%mdl 32] White is clearly winning.} ({Worse is} 36. Qg3+ Qxg3 37. hxg3 Bd8 $11) 36... Nf6 {[%emt 0:00:33] ( -> ...Ng4)} 37. Qxf3 {[%emt 0:01:22]} Qxf3 {[%emt 0:00:33]} 38. Rxf3 {[%emt 0:00:05]} Nxe4 {[%emt 0:00:20]} 39. Kxg2 {[%emt 0:00:34]} Bg5 {[%emt 0:00:40]} 40. Nc3 {[%emt 0:00:29]} Nf6 {[%emt 0:00:32]} 41. Rg3 {[%emt 0:30:35] What a bad dream for Black.  Weighted Error Value: White=0.59/Black=0.54} 1-0

[Event "FRA-ch Teams Top 16-A 2022"]
[Site "Chartres"]
[Date "2022.06.12"]
[Round "4.32"]
[White "Afraoui, Solenn"]
[Black "Tomasi, Elise"]
[Result "0-1"]
[ECO "A14"]
[WhiteElo "1945"]
[BlackElo "2017"]
[Annotator "TA"]
[PlyCount "70"]
[EventDate "2022.06.09"]
[EventType "team-tourn"]
[EventCountry "FRA"]
[SourceTitle "playchess.com"]
[Source "ChessBase"]
[SourceQuality "1"]
[TimeControl "40/5400+30:1800+30"]

{[%evp 9,70,11,14,9,29,7,6,23,45,48,68,40,70,-21,-18,-27,-38,-33,-36,-82,-77,-107,-100,-116,-124,-168,-166,-147,-156,-216,-185,-175,-195,-307,-188,-189,-185,-884,-877,-795,-448,-504,-336,-561,-516,-496,-499,-647,-443,-729,-738,-691,-512,-466,-411,-1891,-1769,-1840,-1710,-2645,-2579,-2369,-2225]} 1. Nf3 {[%emt 0:00:08]} d5 {[%emt 0:00:20]} 2. g3 {[%emt 0:00:12]} Nf6 {[%emt 0:00:52]} 3. Bg2 {[%emt 0:00:15]} e6 {[%emt 0:01:10]} 4. O-O {[%emt 0:00:30]} Be7 {[%emt 0:01:19]} 5. c4 {[%emt 0:01:58]} d4 {[%emt 0:05:08]} 6. b4 {[%emt 0:07:14] A14: English Opening: 1...e6 with b3 by White.} (6. e3 {with more complications.} c5 7. Ne5 Qc7 8. f4) 6... c5 {[%emt 0:15:52]} 7. Bb2 {[%emt 0:05:31]} O-O {[%emt 0:03:10]} 8. d3 {[%emt 0:05:02] The position is equal.} Nc6 {[%emt 0:07:18]} 9. b5 {[%emt 0:06:27]} Nb8 {[%emt 0:00:42] [#]} 10. a4 $146 {[%emt 0:08:15]} ({Predecessor:} 10. e3 dxe3 11. fxe3 Nbd7 12. Nc3 Qc7 13. Qe2 Rb8 14. a4 b6 15. a5 {½-½ (48) Radosavljevic,S (2260)-Ilic,V (2106) Paracin 2019}) 10... a6 {[%emt 0:08:21]} 11. bxa6 {[%emt 0:06:11]} (11. e3 $14) 11... Rxa6 $11 {[%emt 0:04:45]} 12. Na3 {[%emt 0:05:55]} Nc6 {[%emt 0:05:52]} 13. Nb5 {[%emt 0:04:06]} e5 {[%emt 0:05:34]} 14. Nd2 {[%emt 0:01:01]} (14. e3 $15 {should be considered.}) 14... Bf5 $17 {[%emt 0:01:47] Black continues to play with concentration.} 15. Qc2 {[%emt 0:15:12]} Qd7 {[%emt 0:04:04]} 16. Rfb1 {[%emt 0:03:54]} Bh3 {[%emt 0:07:40]} 17. Bh1 {[%emt 0:01:56]} Ng4 {[%emt 0:02:01]} 18. Ba3 {[%emt 0:11:05]} f5 {[%emt 0:05:16][%cal Oe5e4] Black is more active.} ({Weaker is} 18... Qf5 19. Ne4 Rc8 20. Qd1 $15) 19. Bf3 {[%emt 0:03:50] Prevents e4.} (19. Bd5+ $17 {was necessary.} Kh8 20. Qd1) 19... Kh8 {[%emt 0:03:03][%cal Oe5e4]} 20. Nb3 {[%emt 0:02:22]} b6 {[%emt 0:02:47]} (20... Rxa4 $2 21. Nxc5 Bxc5 22. Qxa4 $18) 21. Bc1 {[%emt 0:00:56]} (21. a5 $142 Nxa5 22. Bxg4 Bxg4 23. f3 Nxb3 24. Qxb3) 21... Nb4 {[%emt 0:01:23]} 22. Qd1 {[%emt 0:01:40]} e4 $36 {[%emt 0:00:58][%mdl 2048] Black is really pushing.} 23. Bg2 {[%emt 0:00:35]} (23. Bxg4 Bxg4 24. f3) 23... Bxg2 $19 {[%emt 0:00:40]} 24. Kxg2 {[%emt 0:00:06]} exd3 {[%emt 0:00:32][%cal Of5f4]} 25. exd3 {[%emt 0:00:13]} Ne5 {[%emt 0:01:16]} 26. a5 $2 {[%emt 0:01:48]} (26. Bf4 {was called for.} Qc6+ 27. f3 Nbxd3 28. Bxe5 Nxe5 29. Qe2) 26... Qb7+ {[%emt 0:01:39]} 27. f3 {[%emt 0:00:12]} Nbxd3 {[%emt 0:00:12][%cal Oe5f3] [#] And now ...Nxf3! would win.} 28. Bd2 {[%emt 0:04:37]} Nxc4 {[%emt 0:03:21] Hoping for ...f4.} 29. axb6 {[%emt 0:01:59]} (29. Qf1 $142 Nde5 30. Bf4) 29... Rxa1 {[%emt 0:07:58]} 30. Nxa1 {[%emt 0:00:11]} Nde5 {[%emt 0:00:00][%cal Bd3e5,Be5f3,Bf3d2,Bd2b1][%mdl 32]} 31. Bf4 {[%emt 0:00:31]} Ra8 {[%emt 0:00:00]} 32. Qe2 {[%emt 0:01:31]} (32. Nc2 $142 Ng6 33. Bc7) 32... d3 {[%emt 0:00:00] Black is clearly winning.} 33. Qf2 {[%emt 0:00:26] [#]} Nxf3 $1 {[%emt 0:00:00][%mdl 512]} 34. Nc3 {[%emt 0:01:03]} (34. Kh1 g5) 34... Nfd2+ {[%emt 0:00:00]} 35. Kh3 {[%emt 0:00:31]} Nxb1 {[%emt 0:00:00] Weighted Error Value: White=0.98/Black=0.47} 0-1

[Event "FRA-ch Teams Top 16-A 2022"]
[Site "Chartres"]
[Date "2022.06.13"]
[Round "5.1"]
[White "Sochacki, Christophe"]
[Black "Santos Ruiz, Miguel"]
[Result "1/2-1/2"]
[ECO "D00"]
[WhiteElo "2493"]
[BlackElo "2586"]
[Annotator "TA"]
[PlyCount "117"]
[EventDate "2022.06.09"]
[EventType "team-tourn"]
[EventCountry "FRA"]
[SourceTitle "playchess.com"]
[Source "ChessBase"]
[SourceQuality "1"]
[TimeControl "40/5400+30:1800+30"]

{[%evp 9,116,-11,1,-5,13,-1,0,-2,30,12,41,27,63,57,97,93,101,102,88,90,107,113,104,0,0,-15,-20,-18,-12,-10,0,0,0,0,0,0,0,0,22,22,39,43,40,41,47,53,66,14,9,9,70,78,70,10,58,58,58,65,202,189,195,203,519,552,639,337,461,433,547,547,1162,70,70,70,69,67,72,72,72,72,71,8,8,0,8,0,0,0,0,0,0,0,0,0,0,0,0,0,0,0,0,0,0,0,0,0,0,0,0]} 1. d4 {[%emt 0:00:03]} Nf6 {[%emt 0:00:05]} 2. Bg5 {[%emt 0:00:07]} d5 {[%emt 0:00:07]} 3. Nd2 {[%emt 0:00:08]} Nc6 {[%emt 0:00:36]} 4. Bxf6 {[%emt 0:07:10]} gxf6 {[%emt 0:01:17]} 5. e3 {[%emt 0:01:25]} e5 {[%emt 0:00:50]} 6. c3 {[%emt 0:02:32] D00: 1 d4 d5: Unusual lines.} Be6 {[%emt 0:06:36] [#]} 7. a4 $146 {[%emt 0:10:29]} ({Predecessor:} 7. Qb3 Qd6 8. Qxb7 Rb8 9. Qa6 Rxb2 10. Rb1 Rxb1+ 11. Nxb1 Bg7 12. Bb5 Bd7 13. Qa4 {0-1 (46) Mueller Toepler,M-Malewicz,F freechess.de 2020}) 7... Qd6 {[%emt 0:16:15]} 8. a5 {[%emt 0:00:34]} Bg7 {[%emt 0:05:32]} 9. Bd3 {[%emt 0:06:20]} f5 {[%emt 0:03:23]} 10. Ne2 {[%emt 0:07:58]} f4 {[%emt 0:15:15]} 11. dxe5 $1 {[%emt 0:05:48]} Nxe5 {[%emt 0:04:58]} 12. Nxf4 {[%emt 0:00:59]} Nxd3+ {[%emt 0:00:03]} 13. Nxd3 {[%emt 0:00:03]} O-O-O {[%emt 0:00:54][%cal Od5d4]} 14. Nf4 {[%emt 0:09:52]} d4 {[%emt 0:07:56]} 15. cxd4 {[%emt 0:01:11]} Bxd4 {[%emt 0:02:33]} 16. Nxe6 {[%emt 0:04:28]} (16. exd4 $2 Qxf4 17. Qf3 Qxd4 $19) (16. Qc2 $1 $16) 16... Qxe6 $11 {[%emt 0:00:21]} 17. Qb3 {[%emt 0:02:31]} (17. Qc2 Bxe3 $1 {[%mdl 512]} 18. Nf3 (18. fxe3 Qxe3+ 19. Kd1 Rxd2+ 20. Qxd2 Rd8 $17) 18... Bc5+ 19. Kf1 Qa6+ 20. Kg1 Qd3 $1 21. Qxd3 (21. Qxc5 $2 Qd1+ 22. Ne1 Qxa1 $19) 21... Rxd3 $17) 17... Qxb3 {[%emt 0:00:47][%mdl 64] Remove Defender} 18. Nxb3 {[%emt 0:00:02]} Bxb2 {[%emt 0:00:06] And now ...Rd3 would win.} 19. Ra2 {[%emt 0:00:54]} Bg7 {[%emt 0:02:20]} 20. Ke2 {[%emt 0:00:22]} Rd5 {[%emt 0:01:23]} 21. Rc1 {[%emt 0:08:07]} Rb5 {[%emt 0:02:02]} 22. Nd2 {[%emt 0:00:14]} Rd8 {[%emt 0:02:36]} 23. f4 {[%emt 0:00:39]} Rd7 {[%emt 0:09:25]} 24. g4 {[%emt 0:00:08]} b6 {[%emt 0:00:12]} 25. axb6 {[%emt 0:06:34]} axb6 {[%emt 0:00:39]} 26. g5 {[%emt 0:00:47]} Kb7 {[%emt 0:00:42]} 27. h4 {[%emt 0:00:07]} h6 {[%emt 0:01:23]} 28. Rc4 {[%emt 0:02:11]} (28. Rh1 $14) 28... hxg5 {[%emt 0:01:00]} 29. hxg5 {[%emt 0:00:38]} Rb2 {[%emt 0:02:52]} ({Better is} 29... c5 $11) 30. Rxb2 $14 {[%emt 0:00:33]} Bxb2 {[%emt 0:00:02][%mdl 4096] Endgame KRB-KRN} 31. f5 {[%emt 0:00:42]} ({White should play} 31. Rc2 $14 Bg7 32. f5) 31... b5 {[%emt 0:00:55]} (31... c5 $11 {deserves consideration.}) 32. Rc2 $1 {[%emt 0:02:12]} (32. Rb4 $2 Bc3 33. Rxb5+ Kc6 $17) 32... Ba3 {[%emt 0:01:09]} 33. e4 {[%emt 0:01:50]} c5 {[%emt 0:01:08]} (33... Re7 $14) 34. f6 $1 $18 {[%emt 0:00:21]} c4 {[%emt 0:00:12]} 35. e5 $1 {[%emt 0:04:52][%cal Oe5e6] Black must now prevent e6!} Kc6 $2 {[%emt 0:03:20]} (35... Rd8 {is a better chance.} 36. e6 Re8) 36. e6 {[%emt 0:05:17]} fxe6 {[%emt 0:00:37]} 37. Ra2 {[%emt 0:01:31]} Be7 {[%emt 0:03:00][%cal Oc6d5]} 38. Ne4 {[%emt 0:02:10]} (38. fxe7 Rxe7 39. Ne4 Rc7 $18) 38... b4 {[%emt 0:00:42]} 39. Ra6+ {[%emt 0:01:19]} ({Less strong is} 39. fxe7 Rxe7 40. Ra5 c3 $16) 39... Kd5 {[%emt 0:00:22] [#]} 40. Ke3 $2 {[%emt 0:00:36]} ({White must play} 40. g6 $1 $18 {g7 would kill now.} Bf8 41. Rd6+ (41. g7 Bxg7 42. fxg7 Rxg7 $11) 41... Bxd6 42. g7 Kxe4 43. g8=Q) 40... c3 $1 $14 {[%emt 0:00:44] Hoping for ...c2.} 41. fxe7 {[%emt 0:23:43] White is more active.} Rxe7 {[%emt 0:01:19] KRN-KR} 42. Rd6+ {[%emt 0:02:42]} Kc4 {[%emt 0:00:33]} 43. Rc6+ {[%emt 0:01:59]} Kb3 {[%emt 0:00:54] [#]} 44. Nc5+ $1 {[%emt 0:02:42]} Kc2 {[%emt 0:05:19] [#]} 45. Rb6 {[%emt 0:00:03]} ({Of course not} 45. Nxe6 b3 46. Kd4 Rd7+ 47. Kc4 b2 $11) (45. g6 $1 $16) 45... Rg7 $1 $11 {[%emt 0:00:21] The position is equal.} 46. Kf4 {[%emt 0:03:26]} Rf7+ {[%emt 0:04:14]} 47. Kg4 {[%emt 0:00:08]} Rc7 {[%emt 0:00:20]} 48. Nxe6 {[%emt 0:00:05]} Rc4+ {[%emt 0:01:05]} 49. Kf5 {[%emt 0:00:58]} b3 {[%emt 0:00:33]} 50. g6 {[%emt 0:00:27] g7 is the strong threat.} b2 {[%emt 0:00:36]} 51. g7 {[%emt 0:00:16]} Rc8 {[%emt 0:00:44]} 52. Nf8 {[%emt 0:01:47]} b1=Q {[%emt 0:00:04]} 53. Rxb1 {[%emt 0:00:03]} Kxb1 {[%emt 0:00:04]} 54. g8=Q {[%emt 0:00:08] Threatening mate with Qg1+.} Rxf8+ {[%emt 0:00:03]} 55. Qxf8 {[%emt 0:00:48] White threatens Qb4+ and mate.} c2 {[%emt 0:00:02]} 56. Qb4+ {[%emt 0:00:04]} Ka1 {[%emt 0:00:02]} 57. Qc3+ {[%emt 0:00:04]} Kb1 {[%emt 0:00:02]} 58. Qb3+ {[%emt 0:00:03]} Ka1 {[%emt 0:00:02]} 59. Qxc2 {[%emt 0:00:32] Blacks defense is rewarded with a draw.  Weighted Error Value: White=0.28 (precise) /Black=0.25 (precise)} 1/2-1/2

[Event "FRA-ch Teams Top 16-A 2022"]
[Site "Chartres"]
[Date "2022.06.13"]
[Round "5.2"]
[White "Parligras, Mircea-Emilian"]
[Black "Dutreuil, Raphael"]
[Result "1-0"]
[ECO "B06"]
[WhiteElo "2583"]
[BlackElo "2309"]
[Annotator "TA"]
[PlyCount "67"]
[EventDate "2022.06.09"]
[EventType "team-tourn"]
[EventCountry "FRA"]
[SourceTitle "playchess.com"]
[Source "ChessBase"]
[SourceQuality "1"]
[TimeControl "40/5400+30:1800+30"]

{[%evp 12,67,19,18,28,28,17,13,16,28,13,24,22,14,12,16,11,13,18,10,8,12,14,0,13,15,27,20,53,56,83,65,72,73,109,77,88,66,68,59,66,52,72,63,109,101,110,107,119,106,192,167,210,210,422,418,29992,701]} 1. d4 {[%emt 0:00:03]} g6 {[%emt 0:01:12]} 2. e4 {[%emt 0:00:20]} Bg7 {[%emt 0:00:08]} 3. Nf3 {[%emt 0:01:05]} d6 {[%emt 0:00:45]} 4. Bc4 {[%emt 0:00:10]} Nf6 {[%emt 0:01:42]} 5. Qe2 {[%emt 0:02:18]} O-O {[%emt 0:00:11]} 6. O-O {[%emt 0:03:21]} Bg4 {[%emt 0:00:28]} 7. e5 {[%emt 0:02:29]} dxe5 {[%emt 0:08:40] B06: Modern Defence.} 8. dxe5 {[%emt 0:00:05]} Nd5 {[%emt 0:02:29]} 9. Nbd2 {[%emt 0:06:25]} Nb6 {[%emt 0:13:49] The position is equal.} 10. Bd3 {[%emt 0:04:10]} Nc6 {[%emt 0:05:26][%cal Oc6e5]} 11. h3 $1 {[%emt 0:00:35]} Nd4 {[%emt 0:04:47]} 12. Qe4 {[%emt 0:03:45]} (12. Qd1 {looks sharper.} Bxf3 13. Nxf3 Nxf3+ 14. Qxf3 Bxe5 15. Qxb7 Nd5 16. Be4) 12... Nxf3+ {[%emt 0:01:02]} 13. Nxf3 {[%emt 0:03:51]} Bf5 {[%emt 0:01:17]} 14. Qxb7 {[%emt 0:00:44] Hoping for Bxf5.} Bxd3 {[%emt 0:02:52]} 15. cxd3 {[%emt 0:00:08]} Qxd3 {[%emt 0:00:20]} 16. Qxc7 {[%emt 0:10:45]} e6 {[%emt 0:00:32] [#]} ({Don't play} 16... Nd5 17. Qa5 $14) 17. Qe7 $146 {[%emt 0:06:45]} ({Predecessor:} 17. Re1 Rfc8 18. Qb7 Nc4 19. Bf4 Rcb8 20. Qe7 Nxb2 21. Ng5 Rf8 22. Ne4 Qd8 23. Nf6+ Bxf6 24. exf6 {½-½ (68) Roebuck,D (2343)-Helemae,H (2169) ICCF email 2017}) 17... Nd5 {[%emt 0:21:19]} 18. Qh4 {[%emt 0:00:16]} Rfc8 {[%emt 0:00:57]} 19. b3 {[%emt 0:00:52]} ({But not} 19. Ng5 h6 20. Nf3 Rc4 $15) 19... Rab8 {[%emt 0:09:56]} 20. Bh6 {[%emt 0:06:57]} ({Wrong is} 20. Ng5 $2 h6 21. Nxf7 Kxf7 22. Bxh6 Bxe5 $19) 20... Bh8 {[%emt 0:07:29]} 21. Rad1 {[%emt 0:07:57]} Qa6 {[%emt 0:02:08] [#]} 22. Rd2 $1 {[%emt 0:02:42]} Rc3 {[%emt 0:02:12]} 23. Re1 {[%emt 0:11:06]} Rbc8 {[%emt 0:00:35]} 24. Kh2 {[%emt 0:01:57]} Qa5 {[%emt 0:01:46]} 25. Qe4 {[%emt 0:05:05]} Qc7 {[%emt 0:01:27]} 26. Kg1 {[%emt 0:01:16] White is more active.} a5 {[%emt 0:01:31]} 27. h4 {[%emt 0:00:24][%cal Bh3h4,Bh4h5][%mdl 32]} Rc1 {[%emt 0:03:03]} (27... Bg7 $14 28. Bxg7 Kxg7) 28. Rxc1 {[%emt 0:00:46]} Qxc1+ {[%emt 0:00:03]} 29. Kh2 {[%emt 0:00:08]} Qa1 {[%emt 0:02:40]} 30. h5 {[%emt 0:06:35]} Qf1 {[%emt 0:04:05]} (30... Rc1 $16 {keeps fighting.}) 31. Rc2 $40 {[%emt 0:02:14][%cal Rc2c8][%mdl 128] [#] White attacks with force.} Qa6 {[%emt 0:00:24]} 32. Qa4 {[%emt 0:01:18][%cal Oa4d7] Black must now prevent Qd7!} Ra8 $2 {[%emt 0:00:39]} (32... Rd8 33. Qh4 Re8 34. hxg6 hxg6) 33. Qd7 $18 {[%emt 0:00:34] Ng5 would kill now.} a4 {[%emt 0:00:31]} (33... Nb6 $18 34. Qd6 Qb7) 34. Rc6 {[%emt 0:00:57] Weighted Error Value: White=0.06 (flawless) /Black=0.40} (34. Ng5 $142 Bxe5+ 35. g3 Rf8 36. Bxf8 Qb7 37. Qxb7 Bc7 38. Bh6 Nf6 39. Qc8+ Bd8 40. Qxd8+ Ne8 41. Qxe8#) 1-0

[Event "FRA-ch Teams Top 16-A 2022"]
[Site "Chartres"]
[Date "2022.06.13"]
[Round "5.3"]
[White "Sochacki, Wojtek"]
[Black "Abasov, Nijat"]
[Result "0-1"]
[ECO "D45"]
[WhiteElo "2324"]
[BlackElo "2635"]
[Annotator "TA"]
[PlyCount "58"]
[EventDate "2022.06.09"]
[EventType "team-tourn"]
[EventCountry "FRA"]
[SourceTitle "playchess.com"]
[Source "ChessBase"]
[SourceQuality "1"]
[TimeControl "40/5400+30:1800+30"]

{[%evp 15,58,3,41,6,7,-20,-4,-20,-16,-81,-63,-71,-64,-73,-51,-94,-89,-137,-119,-129,-85,-177,-204,-190,-209,-207,-93,-83,-82,-76,-55,-149,-164,-216,-227,-231,-211,-209,-196,-602,-603,-1229,-1153,-29995,-29996]} 1. d4 {[%emt 0:00:04]} Nf6 {[%emt 0:00:07]} 2. c4 {[%emt 0:00:22]} e6 {[%emt 0:00:06]} 3. Nf3 {[%emt 0:00:17]} d5 {[%emt 0:00:10]} 4. Nc3 {[%emt 0:00:22]} c6 {[%emt 0:00:52]} 5. e3 {[%emt 0:02:19]} Nbd7 {[%emt 0:00:38]} 6. Qc2 {[%emt 0:01:28]} Bd6 {[%emt 0:00:34]} 7. g4 {[%emt 0:14:11]} h6 {[%emt 0:02:38]} 8. Bd2 {[%emt 0:07:07]} Qe7 {[%emt 0:18:31]} 9. h3 {[%emt 0:16:45] D45: Semi-Slav: 5 e3.} b6 {[%emt 0:08:10][%cal Bb7b6,Bb6b5,Bb5b4][%mdl 32]} 10. Rg1 {[%emt 0:21:35]} Bb7 {[%emt 0:00:44]} 11. cxd5 {[%emt 0:04:39] The position is equal.} cxd5 {[%emt 0:00:49]} 12. O-O-O {[%emt 0:01:32] [#]} (12. Nb5 $11) 12... a6 $146 {[%emt 0:02:15]} ({Predecessor:} 12... Ne4 13. Rg2 Rc8 14. Kb1 a6 15. Qb3 b5 16. Be2 Nb6 17. Ne5 Nxd2+ 18. Rxd2 Nc4 {0-1 (40) Ajeet Singh,R (2014)-Lim,Y (2309) Kuala Lumpur 2013}) 13. Kb1 {[%emt 0:01:42]} b5 {[%emt 0:01:21]} 14. Rc1 {[%emt 0:03:16]} Ne4 {[%emt 0:04:23]} 15. Be1 {[%emt 0:02:03]} O-O {[%emt 0:04:55] Black is more active.} 16. Nd2 {[%emt 0:06:28]} (16. Qd1 $142) 16... Nxc3+ {[%emt 0:03:01]} 17. Qxc3 {[%emt 0:03:49]} b4 {[%emt 0:08:44]} 18. Qd3 {[%emt 0:03:17]} (18. Qb3 $17) 18... a5 $19 {[%emt 0:00:41]} 19. f4 {[%emt 0:01:49]} Ba6 {[%emt 0:00:52]} 20. Qc2 {[%emt 0:01:18]} a4 {[%emt 0:13:15]} (20... Bxf1 $19 {is more deadly.} 21. Rxf1 a4) 21. Bxa6 $17 {[%emt 0:01:05]} Rxa6 {[%emt 0:00:04]} 22. Qd3 {[%emt 0:00:05] Inhibits b3.} Rb6 {[%emt 0:00:49][%cal Ob4b3]} 23. Nf3 {[%emt 0:00:32]} ({White should play} 23. g5 $15) 23... b3 {[%emt 0:06:14]} 24. a3 {[%emt 0:03:38] [#]} (24. Bh4 $142 bxa2+ 25. Ka1) 24... Bxa3 $1 $19 {[%emt 0:00:05][%mdl 512]} 25. bxa3 {[%emt 0:00:03]} Qxa3 {[%emt 0:00:03][%csl Gb3][%cal Ra3a2]} 26. Rg2 {[%emt 0:00:06] [#] Against Qa2+} Qd6 $1 {[%emt 0:00:07][%mdl 1024] ...a3 is the strong threat. Black has strong compensation. Really sharp!} 27. Rb2 $2 {[%emt 0:00:15]} (27. g5 hxg5 28. Nxg5) 27... a3 {[%emt 0:00:29][%cal Ba4a3,Ba3a2][%mdl 32]} 28. Rg2 {[%emt 0:01:19]} b2 {[%emt 0:00:09]} 29. Rd1 {[%emt 0:00:05]} a2+ {[%emt 0:00:10][%mdl 64] Promotion.  Weighted Error Value: White=1.01/Black=0.12 (very precise)} 0-1